fUST/lending_fUST_20241211
["ID","MTS","AMOUNT","RATE_DAILY","PERIOD"]
[344898921,1733856640086,-248.11,0.000299,31]
[344898923,1733856640095,-3248.76083476,0.00029928,2]
[344898925,1733856640104,-302.75782099,0.00029928,2]
[344898927,1733856640116,-1325.56523126,0.00029928,2]
[344898929,1733856640125,-3504.55025083,0.00029928,7]
[344898931,1733856640135,-3504.55025083,0.00029928,7]
[344898933,1733856640144,-3504.55025083,0.00029928,7]
[344898935,1733856640154,-3504.55025083,0.00029928,7]
[344898937,1733856640163,-3504.55025083,0.00029928,7]
[344898939,1733856640172,-3504.55025083,0.00029928,7]
[344898941,1733856640182,-3504.55025083,0.00029928,7]
[344898943,1733856640191,-3504.55025083,0.00029928,7]
[344898945,1733856640200,-3504.55025083,0.00029928,7]
[344898947,1733856640210,-3504.55025083,0.00029928,7]
[344898949,1733856640219,-3504.55025083,0.00029928,7]
[344898951,1733856640228,-3504.55025083,0.00029928,7]
[344898953,1733856640238,-3504.55025083,0.00029928,7]
[344898955,1733856640247,-3504.55025083,0.00029928,7]
[344898957,1733856640256,-3504.55025083,0.00029928,7]
[344898959,1733856640265,-3504.55025083,0.00029928,7]
[344898961,1733856640275,-3504.55025083,0.00029928,7]
[344898963,1733856640283,-3504.55025083,0.00029928,7]
[344898965,1733856640293,-3504.55025083,0.00029928,7]
[344898967,1733856640302,-3504.55,0.00029928,7]
[344898969,1733856640311,-5256.82537625,0.00029928,7]
[344898971,1733856640321,-5256.82537625,0.00029928,7]
[344898973,1733856640330,-5256.82537625,0.00029928,7]
[344898975,1733856640339,-5256.82537625,0.00029928,7]
[344898977,1733856640348,-5256.82537625,0.00029928,7]
[344898979,1733856640357,-5256.82537625,0.00029928,7]
[344898981,1733856640368,-5256.82537625,0.00029928,7]
[344898983,1733856640378,-5256.82537625,0.00029928,7]
[344898985,1733856640387,-5256.82537625,0.00029928,7]
[344898987,1733856640396,-5256.82537625,0.00029928,7]
[344898988,1733856640405,-5256.82537625,0.00029928,7]
[344898990,1733856640415,-5256.82537625,0.00029928,7]
[344898992,1733856640424,-5256.82537625,0.00029928,7]
[344898994,1733856640433,-5256.82537625,0.00029928,7]
[344898996,1733856640443,-5256.82537625,0.00029928,7]
[344898998,1733856640453,-5256.82537625,0.00029928,7]
[344899000,1733856640463,-5256.82537625,0.00029928,7]
[344899002,1733856640473,-5256.82537625,0.00029928,7]
[344899004,1733856640483,-5256.82537625,0.00029928,7]
[344899006,1733856640492,-1077.09831826,0.00029928,7]
[344899016,1733856640570,-368.82688662,0.00029928,7]
[344899018,1733856640583,-2071.00250492,0.00029928,7]
[344899020,1733856640595,-1739.8922902,0.00029928,7]
[344899022,1733856640605,-150.0,0.00029928,7]
[344899024,1733856640616,-225.0,0.00029928,7]
[344899026,1733856640626,-180.47786103,0.00029931,2]
[344899027,1733856640635,-302.75782099,0.00029959,2]
[344899029,1733856640644,-1006.40004817,0.00029965,2]
[344899031,1733856640654,-886.4032405,0.00029968,2]
[344899032,1733856640663,-500.0,0.00029972,7]
[344899033,1733856640673,-2785.32,0.00029972,7]
[344899034,1733856640683,-1214.83,0.00029972,7]
[344899035,1733856640692,-500.0,0.00029972,7]
[344899036,1733856640701,-500.0,0.00029972,7]
[344899037,1733856640711,-839.74,0.00029972,7]
[344899038,1733856640720,-501.03918566,0.00029973,5]
[344899039,1733856640729,-501.64041528,0.00029973,5]
[344899040,1733856640740,-500.0,0.00029973,5]
[344899041,1733856640751,-504.15351589,0.00029973,5]
[344899042,1733856640761,-501.27777099,0.00029973,5]
[344899043,1733856640770,-500.50091017,0.00029973,5]
[344899044,1733856640779,-161.68691946,0.00029973,5]
[344899045,1733856640790,-1000.0,0.00029984,2]
[344899046,1733856640800,-500.0,0.00029984,7]
[344899047,1733856640809,-766.05,0.00029984,7]
[344899048,1733856640819,-766.05,0.00029984,7]
[344899049,1733856640829,-643.11110704,0.00029984,7]
[344899050,1733856640839,-501.59,0.00029984,7]
[344899051,1733856640849,-63.06058097,0.00029984,7]
[344899052,1733856640992,-466.6991998,0.00029863,7]
[344899053,1733856641004,-792.8808002,0.00029863,7]
[344899054,1733856641014,-1259.58,0.00029863,7]
[344899055,1733856641024,-1259.58,0.00029863,7]
[344899056,1733856641034,-1259.58,0.00029863,7]
[344899057,1733856641044,-1259.58,0.00029863,7]
[344899058,1733856641053,-1259.58,0.00029863,7]
[344899059,1733856641063,-808.46468897,0.00029863,7]
[344899060,1733856641075,-451.11531103,0.00029863,7]
[344899061,1733856641084,-1259.58,0.00029863,7]
[344899062,1733856641093,-1259.58,0.00029863,7]
[344899063,1733856641103,-1259.58,0.00029863,7]
[344899064,1733856641114,-1259.58,0.00029863,7]
[344899065,1733856641123,-1259.58,0.00029863,7]
[344899066,1733856641133,-1259.58,0.00029863,7]
[344899067,1733856641142,-1259.58,0.00029863,7]
[344899068,1733856641151,-1259.58,0.00029863,7]
[344899069,1733856641160,-634.04887206,0.00029863,7]
[344899070,1733856641171,-625.53112794,0.00029863,7]
[344899071,1733856641181,-1259.58,0.00029863,7]
[344899072,1733856641190,-500.34859305,0.00029973,5]
[344899073,1733856641199,-500.0,0.00029973,5]
[344899074,1733856641208,-500.36572964,0.00029973,5]
[344899075,1733856641217,-438.52941903,0.00029984,7]
[344899076,1733856641227,-500.0,0.00029984,7]
[344899077,1733856641236,-500.0,0.00029984,7]
[344899078,1733856641246,-500.0,0.00029984,7]
[344899079,1733856641255,-500.0,0.00029984,7]
[344899080,1733856641265,-1247.75,0.00029984,7]
[344899081,1733856641274,-1247.75,0.00029984,7]
[344899082,1733856641283,-500.0,0.00029984,7]
[344899083,1733856641292,-500.0,0.00029984,7]
[344899084,1733856641301,-500.0,0.00029984,7]
[344899085,1733856641310,-500.0,0.00029984,7]
[344899086,1733856641319,-762.7,0.00029985,7]
[344899087,1733856641329,-500.0,0.00029985,7]
[344899088,1733856641338,-500.0,0.00029986,7]
[344899089,1733856641347,-500.0,0.00029986,7]
[344899090,1733856641357,-500.0,0.00029986,7]
[344899091,1733856641371,-500.0,0.00029986,7]
[344899092,1733856641382,-766.05,0.00029986,7]
[344899093,1733856641391,-501.59,0.00029986,7]
[344899094,1733856641400,-500.0,0.00029986,7]
[344899095,1733856641409,-500.0,0.00029986,7]
[344899096,1733856641419,-1247.75,0.00029986,7]
[344899097,1733856641428,-500.0,0.00029986,7]
[344899098,1733856641437,-277.67,0.00029986,7]
[344899099,1733856641447,-500.0,0.00029987,7]
[344899100,1733856641456,-502.72828177,0.00029987,7]
[344899101,1733856641465,-500.0,0.00029987,7]
[344899102,1733856641475,-500.0,0.00029987,7]
[344899103,1733856641485,-762.7,0.00029987,7]
[344899104,1733856641495,-766.05,0.00029988,7]
[344899105,1733856641504,-500.0,0.00029988,7]
[344899106,1733856641514,-2785.32,0.00029988,7]
[344899107,1733856641523,-501.59,0.00029988,7]
[344899108,1733856641532,-500.0,0.00029988,7]
[344899109,1733856641542,-500.0,0.00029988,7]
[344899110,1733856641552,-1214.83,0.00029988,7]
[344899111,1733856641563,-1247.75,0.00029988,7]
[344899112,1733856641573,-500.0,0.00029988,7]
[344899113,1733856641582,-500.0,0.00029988,7]
[344899114,1733856641592,-500.0,0.00029988,7]
[344899115,1733856641601,-839.74,0.00029988,7]
[344899116,1733856641615,-500.0,0.00029989,7]
[344899117,1733856641624,-500.0,0.00029989,7]
[344899118,1733856641634,-500.0,0.00029989,7]
[344899119,1733856641643,-241.03359459,0.00029989,7]
[344899120,1733856641652,-2785.32,0.00029989,7]
[344899121,1733856641662,-2785.32,0.00029989,7]
[344899122,1733856641671,-2785.32,0.00029989,7]
[344899123,1733856641681,-2785.32,0.00029989,7]
[344899124,1733856641691,-2785.32,0.00029989,7]
[344899125,1733856641788,-2785.32,0.00029989,7]
[344899126,1733856641799,-2785.55332204,0.00029989,7]
[344899127,1733856641810,-150.01,0.00029989,2]
[344899128,1733856641820,-762.7,0.00029989,7]
[344899129,1733856641830,-762.7,0.00029989,7]
[344899130,1733856641840,-762.7,0.00029989,7]
[344899131,1733856641850,-500.0,0.00029989,7]
[344899132,1733856641859,-168.8203895,0.00029989,7]
[344899133,1733856641873,-1214.83,0.00029989,7]
[344899134,1733856641883,-1214.83,0.00029989,7]
[344899135,1733856641894,-1214.83,0.00029989,7]
[344899136,1733856641904,-1214.83,0.00029989,7]
[344899137,1733856641914,-1214.83,0.00029989,7]
[344899138,1733856641923,-1214.83,0.00029989,7]
[344899139,1733856641933,-1215.03118714,0.00029989,7]
[344899140,1733856641943,-500.0,0.00029989,7]
[344899141,1733856641953,-500.0,0.00029989,7]
[344899142,1733856641963,-500.0,0.00029989,7]
[344899143,1733856641972,-500.0,0.00029989,7]
[344899144,1733856641982,-500.0,0.00029989,7]
[344899145,1733856641992,-459.56254298,0.00029989,7]
[344899146,1733856642002,-500.0,0.00029989,7]
[344899147,1733856642012,-500.0,0.00029989,7]
[344899148,1733856642022,-408.01737281,0.00029989,7]
[344899149,1733856642031,-839.74,0.00029989,7]
[344899150,1733856642041,-839.74,0.00029989,7]
[344899151,1733856642050,-839.74,0.00029989,7]
[344899152,1733856642060,-839.74,0.00029989,7]
[344899153,1733856642070,-839.74,0.00029989,7]
[344899154,1733856642079,-839.74,0.00029989,7]
[344899155,1733856642089,-839.79094192,0.00029989,7]
[344899156,1733856642098,-766.05,0.0002999,7]
[344899157,1733856642107,-766.05,0.0002999,7]
[344899158,1733856642119,-766.05,0.0002999,7]
[344899159,1733856642129,-501.59,0.0002999,7]
[344899160,1733856642138,-501.59,0.0002999,7]
[344899161,1733856642147,-501.59,0.0002999,7]
[344899162,1733856642156,-500.0,0.0002999,7]
[344899163,1733856642165,-500.0,0.0002999,7]
[344899164,1733856642175,-500.0,0.0002999,7]
[344899165,1733856642186,-500.0,0.0002999,7]
[344899166,1733856642195,-500.0,0.0002999,7]
[344899167,1733856642205,-500.0,0.0002999,7]
[344899168,1733856642214,-1247.75,0.0002999,7]
[344899169,1733856642223,-1247.75,0.0002999,7]
[344899170,1733856642233,-1247.75,0.0002999,7]
[344899171,1733856642243,-247.87,0.0002999,7]
[344899172,1733856642252,-155.85972625,0.00029991,2]
[344899173,1733856642261,-2556.91317709,0.00029991,4]
[344899174,1733856642271,-649.94596916,0.00029991,11]
[344899175,1733856642280,-501.93500341,0.00029991,11]
[344899176,1733856642290,-766.05,0.00029999,7]
[344899177,1733856642299,-766.05,0.00029999,7]
[344899178,1733856642308,-766.05,0.00029999,7]
[344899179,1733856642317,-766.05,0.00029999,7]
[344899180,1733856642327,-501.59,0.00029999,7]
[344899181,1733856642336,-501.59,0.00029999,7]
[344899182,1733856642345,-501.59,0.00029999,7]
[344899183,1733856642355,-501.59,0.00029999,7]
[344899184,1733856642367,-762.7,0.00029999,7]
[344899185,1733856642376,-762.7,0.00029999,7]
[344899186,1733856642386,-762.7,0.00029999,7]
[344899187,1733856642395,-762.7,0.00029999,7]
[344899188,1733856642404,-762.88726015,0.00029999,7]
[344899189,1733856642414,-251.30779472,0.00029999,7]
[344899190,1733856642424,-500.0,0.00029999,7]
[344899191,1733856642434,-500.0,0.00029999,7]
[344899192,1733856642444,-500.0,0.00029999,7]
[344899193,1733856642454,-500.0,0.00029999,7]
[344899194,1733856642467,-1247.75,0.00029999,7]
[344899195,1733856642476,-1247.75,0.00029999,7]
[344899196,1733856642486,-1247.75,0.00029999,7]
[344899197,1733856642496,-1247.75,0.00029999,7]
[344899198,1733856642505,-29976.99888821,0.0003,100]
[344899199,1733856642514,-168.22364124,0.0003,2]
[344899200,1733856642524,-4480.65267003,0.0003,120]
[344899201,1733856642534,-7268.72155685,0.0003,30]
[344899202,1733856642543,-20415.67,0.0003,2]
[344899203,1733856642553,-2000.0,0.0003,2]
[344899204,1733856642563,-6076.73035377,0.0003,7]
[344899205,1733856642572,-187.0,0.0003,2]
[344899206,1733856642582,-151.0,0.0003,20]
[344899207,1733856642591,-150.15,0.0003,2]
[344899208,1733856642600,-150.15,0.0003,2]
[344899210,1733856642609,-150.75763543,0.0003,2]
[344899212,1733856642623,-151.15346465,0.0003,2]
[344899214,1733856642632,-150.46634203,0.0003,2]
[344899216,1733856642643,-152.69360415,0.0003,2]
[344899218,1733856642652,-248.11,0.0003,31]
[344899220,1733856642662,-248.11,0.0003,31]
[344899223,1733856642672,-248.11,0.0003,31]
[344899224,1733856642682,-248.11,0.0003,31]
[344899227,1733856642691,-248.11,0.0003,31]
[344899230,1733856642701,-248.11,0.0003,31]
[344899233,1733856642710,-248.11,0.0003,31]
[344899236,1733856642719,-248.11,0.0003,31]
[344899238,1733856642729,-248.11,0.0003,31]
[344899240,1733856642739,-248.11,0.0003,31]
[344899242,1733856642750,-248.11,0.0003,31]
[344899243,1733856642760,-248.11,0.0003,31]
[344899244,1733856642769,-248.11,0.0003,31]
[344899246,1733856642778,-248.11,0.0003,31]
[344899248,1733856642789,-248.11,0.0003,31]
[344899250,1733856642799,-248.11,0.0003,31]
[344899252,1733856642809,-248.11,0.0003,31]
[344899254,1733856642819,-248.11,0.0003,31]
[344899256,1733856642829,-248.11,0.0003,31]
[344899258,1733856642839,-248.11,0.0003,31]
[344899260,1733856642849,-248.11,0.0003,31]
[344899262,1733856642858,-248.11,0.0003,31]
[344899264,1733856642871,-248.11,0.0003,31]
[344899266,1733856642880,-248.11,0.0003,31]
[344899268,1733856642889,-150.0,0.0003,20]
[344899270,1733856642899,-150.0,0.0003,20]
[344899272,1733856642909,-548.0,0.0003,20]
[344899275,1733856642920,-545.0,0.0003,20]
[344899277,1733856642929,-545.0,0.0003,20]
[344899279,1733856642939,-545.0,0.0003,20]
[344899281,1733856642948,-617.43,0.0003,2]
[344899283,1733856642958,-179.86977,0.0003,2]
[344899285,1733856642968,-150.15,0.0003,2]
[344899287,1733856642978,-150.15,0.0003,2]
[344899289,1733856642988,-150.15,0.0003,2]
[344899291,1733856642997,-150.15,0.0003,2]
[344899293,1733856643008,-191.0,0.0003,2]
[344899296,1733856643017,-1000.0,0.00030016,2]
[344899298,1733856643027,-151.0,0.00030027,7]
[344899300,1733856643036,-151.0,0.00030027,7]
[344899301,1733856643045,-151.0,0.00030027,7]
[344899302,1733856643055,-151.0,0.00030027,7]
[344899303,1733856643064,-151.0,0.00030027,7]
[344899305,1733856643073,-151.0,0.00030027,7]
[344899307,1733856643083,-151.0,0.00030027,7]
[344899308,1733856643093,-151.0,0.00030027,7]
[344899309,1733856643103,-151.0,0.00030027,7]
[344899310,1733856643112,-279.81585,0.00030027,7]
[344899311,1733856643124,-208.568554,0.00030027,7]
[344899312,1733856643133,-208.568554,0.00030027,7]
[344899313,1733856643143,-208.568554,0.00030027,7]
[344899314,1733856643152,-208.568554,0.00030027,7]
[344899315,1733856643161,-208.568554,0.00030027,7]
[344899316,1733856643171,-208.568554,0.00030027,7]
[344899317,1733856643180,-208.568554,0.00030027,7]
[344899318,1733856643189,-208.568554,0.00030027,7]
[344899319,1733856643199,-208.568554,0.00030027,7]
[344899320,1733856643208,-208.568554,0.00030027,7]
[344899321,1733856643217,-208.568554,0.00030027,7]
[344899322,1733856643227,-208.568554,0.00030027,7]
[344899323,1733856643236,-208.568554,0.00030027,7]
[344899324,1733856643245,-208.568554,0.00030027,7]
[344899325,1733856643255,-208.568554,0.00030027,7]
[344899326,1733856643264,-208.568554,0.00030027,7]
[344899327,1733856643273,-208.568554,0.00030027,7]
[344899328,1733856643283,-208.568554,0.00030027,7]
[344899329,1733856643292,-208.568554,0.00030027,7]
[344899330,1733856643301,-208.568551,0.00030027,7]
[344899331,1733856643311,-766.05,0.00030027,7]
[344899332,1733856643320,-766.05,0.00030027,7]
[344899333,1733856643329,-766.05,0.00030027,7]
[344899334,1733856643339,-766.05,0.00030027,7]
[344899335,1733856643348,-766.05,0.00030027,7]
[344899336,1733856643358,-766.21514,0.00030027,7]
[344899337,1733856643369,-151.0,0.00030027,7]
[344899338,1733856643379,-151.0,0.00030027,7]
[344899339,1733856643388,-151.0,0.00030027,7]
[344899340,1733856643397,-151.0,0.00030027,7]
[344899341,1733856643407,-151.0,0.00030027,7]
[344899342,1733856643416,-151.0,0.00030027,7]
[344899343,1733856643426,-151.0,0.00030027,7]
[344899344,1733856643435,-151.0,0.00030027,7]
[344899345,1733856643444,-224.7023,0.00030027,7]
[344899346,1733856643453,-151.0,0.00030027,7]
[344899347,1733856643463,-151.0,0.00030027,7]
[344899348,1733856643472,-151.0,0.00030027,7]
[344899349,1733856643482,-199.133372,0.00030027,7]
[344899350,1733856643491,-151.0,0.00030027,7]
[344899351,1733856643500,-151.0,0.00030027,7]
[344899352,1733856643510,-250.930732,0.00030027,7]
[344899353,1733856643519,-501.59,0.00030027,7]
[344899354,1733856643528,-501.59,0.00030027,7]
[344899355,1733856643537,-501.59,0.00030027,7]
[344899356,1733856643547,-501.59,0.00030027,7]
[344899357,1733856643556,-501.59,0.00030027,7]
[344899358,1733856643565,-501.66,0.00030027,7]
[344899359,1733856643575,-500.0,0.00030027,7]
[344899360,1733856643585,-500.0,0.00030027,7]
[344899361,1733856643595,-500.0,0.00030027,7]
[344899362,1733856643605,-500.0,0.00030027,7]
[344899363,1733856643615,-171.83,0.00030027,7]
[344899364,1733856643626,-1247.75,0.00030027,7]
[344899365,1733856643635,-1247.75,0.00030027,7]
[344899366,1733856643645,-1247.75,0.00030027,7]
[344899367,1733856643655,-1247.75,0.00030027,7]
[344899368,1733856643664,-1247.75,0.00030027,7]
[344899369,1733856643674,-1247.79316488,0.00030027,7]
[344899370,1733856643684,-312.7379187,0.00030027,30]
[344899371,1733856643693,-1000.0,0.00030028,2]
[344899372,1733856643703,-68442.44628335,0.00030028,2]
[344899373,1733856643712,-1223.44792916,0.00030028,2]
[344899374,1733856643722,-4349664.82598012,0.00030028,10]
[344899375,1733856643736,-2307.95390265,0.00030028,10]
[344899376,1733856643803,-748.08402052,0.00029863,7]
[344899377,1733856643816,-511.49597948,0.00029863,7]
[344899378,1733856643826,-500.0,0.00029863,7]
[344899379,1733856643835,-500.0,0.00029863,7]
[344899380,1733856643844,-500.0,0.00029863,7]
[344899381,1733856643853,-513.59812339,0.00029863,7]
[344899382,1733856643866,-1259.58,0.00029885,7]
[344899383,1733856643876,-271.24421598,0.00029897,7]
[344899427,1733856646380,-1061.311379,0.000298,2]
[344899429,1733856646390,-988.33578402,0.00029897,7]
[344899431,1733856646399,-1259.58,0.00029897,7]
[344899433,1733856646409,-1259.58,0.00029897,7]
[344899435,1733856646419,-1259.58,0.00029897,7]
[344899436,1733856646429,-1259.73534426,0.00029897,7]
[344899438,1733856646439,-150.834,0.00029897,2]
[344899440,1733856646448,-467750.80211465,0.00030028,10]
[344899591,1733857832387,-322.92062924,0.0002373,2]
[344899593,1733857832397,-169.058494,0.0002383,2]
[344899594,1733857832406,-400.0,0.00023938,2]
[344899595,1733857832415,-776.88798382,0.00024083,2]
[344899597,1733857832439,-4024.29514578,0.00024083,2]
[344899599,1733857832448,-161.667814,0.00024095,2]
[344899601,1733857832457,-185.36662,0.00024104,2]
[344899602,1733857832466,-400.0,0.00024823,2]
[344899603,1733857832475,-3000.0,0.00025,2]
[344899604,1733857832485,-300.0,0.00025009,2]
[344899605,1733857832494,-300.0,0.00025009,2]
[344899606,1733857832504,-3000.0,0.0002501,2]
[344899607,1733857832514,-3000.0,0.0002502,2]
[344899608,1733857832523,-3000.0,0.0002503,2]
[344899609,1733857832534,-3000.0,0.0002504,2]
[344899610,1733857832543,-3000.0,0.0002505,2]
[344899611,1733857832552,-3000.0,0.0002506,2]
[344899612,1733857832562,-3000.0,0.0002507,2]
[344899613,1733857832572,-4188.043006,0.0002508,2]
[344899614,1733857832581,-2674.3573714,0.00025353,2]
[344899615,1733857832590,-24900.0,0.00025454,2]
[344899616,1733857832599,-400.0,0.00025709,2]
[344899617,1733857832609,-199.921289,0.00025791,2]
[344899618,1733857832619,-185.36662,0.00025888,2]
[344899619,1733857832629,-2674.35737139,0.00026007,2]
[344899620,1733857832640,-199.921289,0.00026032,2]
[344899621,1733857832650,-199.921289,0.00026273,2]
[344899622,1733857832659,-199.921289,0.00026514,2]
[344899623,1733857832669,-400.0,0.00026595,2]
[344899624,1733857832679,-2674.35737139,0.00026661,2]
[344899625,1733857832689,-199.921289,0.00026755,2]
[344899626,1733857832699,-199.921289,0.00026996,2]
[344899627,1733857832710,-420.0,0.00027093,2]
[344899628,1733857832720,-199.921289,0.00027237,2]
[344899629,1733857832730,-2674.35737139,0.00027315,2]
[344899630,1733857832741,-175.93934875,0.00027397,2]
[344899631,1733857832751,-199.921289,0.00027478,2]
[344899632,1733857832761,-400.0,0.0002748,2]
[344899633,1733857832771,-420.0,0.0002751,2]
[344899634,1733857832780,-185.36662,0.00027672,2]
[344899635,1733857832790,-199.921289,0.00027719,2]
[344899636,1733857832800,-2674.35737139,0.00027968,2]
[344899637,1733857832809,-213.61984095,0.000281,2]
[344899638,1733857832819,-195.60405147,0.00028188,2]
[344899639,1733857832829,-150.534,0.00028389,2]
[344899640,1733857832839,-150.0,0.00028389,2]
[344899641,1733857832848,-180.932,0.00028389,2]
[344899642,1733857832858,-250.782,0.00028389,2]
[344899643,1733857832867,-150.0,0.00028389,2]
[344899644,1733857832877,-532.0,0.00028389,2]
[344899645,1733857832888,-2369.0,0.00028389,2]
[344899646,1733857832903,-2165.0,0.00028389,2]
[344899647,1733857832912,-542.409,0.0002853,2]
[344899648,1733857832922,-2674.35737139,0.00028622,2]
[344899649,1733857832933,-500.0,0.00028998,7]
[344899650,1733857832943,-520.19964738,0.00029041,120]
[344899651,1733857832953,-312.7379187,0.00029068,30]
[344899652,1733857832963,-2674.35737139,0.00029276,2]
[344899653,1733857832973,-587.0,0.0002935,2]
[344899654,1733857832983,-155.04277556,0.00029384,2]
[344899655,1733857832992,-302.78807257,0.00029489,2]
[344899656,1733857833002,-3943.6246083,0.00029703,2]
[344899657,1733857833012,-961.97922026,0.00029763,2]
[344899658,1733857833022,-666.0,0.00029763,2]
[344899659,1733857833032,-1000.0,0.00029764,2]
[344899660,1733857833042,-302.78807257,0.00029784,2]
[344899661,1733857833052,-961.97922022,0.00029805,2]
[344899662,1733857833063,-961.97922022,0.00029847,2]
[344899663,1733857833073,-1000.0,0.00029847,2]
[344899664,1733857833083,-373.72281788,0.00029862,2]
[344899665,1733857833093,-500.0,0.00029862,2]
[344899666,1733857833103,-500.0,0.00029862,2]
[344899667,1733857833113,-500.0,0.00029862,2]
[344899668,1733857833124,-500.0,0.00029862,2]
[344899669,1733857833135,-181.35449491,0.00029862,2]
[344899670,1733857833150,-500.0,0.00029862,2]
[344899671,1733857833162,-178.75925708,0.00029862,2]
[344899672,1733857833172,-276.46103364,0.00029862,2]
[344899673,1733857833182,-500.0,0.00029862,2]
[344899674,1733857833192,-500.0,0.00029862,2]
[344899675,1733857833203,-500.0,0.00029862,2]
[344899676,1733857833213,-500.0,0.00029862,2]
[344899677,1733857833223,-425.26503168,0.00029862,2]
[344899678,1733857833233,-500.0,0.00029862,2]
[344899679,1733857833243,-500.0,0.00029862,2]
[344899680,1733857833253,-359.08939323,0.00029862,2]
[344899681,1733857833263,-500.0,0.00029862,2]
[344899682,1733857833272,-500.0,0.00029862,2]
[344899683,1733857833282,-500.0,0.00029862,2]
[344899684,1733857833292,-473.95029084,0.00029862,2]
[344899685,1733857833303,-500.0,0.00029862,2]
[344899686,1733857833313,-500.0,0.00029862,2]
[344899687,1733857833323,-500.0,0.00029862,2]
[344899688,1733857833333,-500.0,0.00029862,2]
[344899689,1733857833343,-500.0,0.00029862,2]
[344899690,1733857833353,-500.0,0.00029862,2]
[344899691,1733857833363,-500.0,0.00029862,2]
[344899692,1733857833372,-500.0,0.00029862,2]
[344899693,1733857833382,-499.99999999,0.00029862,2]
[344899694,1733857833396,-204.17376918,0.00029862,2]
[344899695,1733857833406,-214.99057321,0.00029862,2]
[344899696,1733857833415,-191.21655822,0.00029862,2]
[344899697,1733857833425,-500.0,0.00029862,2]
[344899698,1733857833435,-220.86368625,0.00029862,2]
[344899699,1733857833445,-500.0,0.00029863,7]
[344899700,1733857833456,-500.0,0.00029863,7]
[344899701,1733857833465,-421.81202992,0.00029863,7]
[344899702,1733857833475,-625.07234563,0.00029863,7]
[344899703,1733857833485,-500.0,0.00029863,7]
[344899704,1733857833495,-500.0,0.00029863,7]
[344899705,1733857833504,-500.0,0.00029863,7]
[344899706,1733857833514,-500.0,0.00029863,7]
[344899707,1733857833524,-583.54896336,0.00029863,7]
[344899708,1733857833534,-601.15071832,0.00029863,7]
[344899709,1733857833543,-500.0,0.00029863,7]
[344899710,1733857833553,-645.82568939,0.00029863,7]
[344899711,1733857833563,-500.0,0.00029863,7]
[344899712,1733857833572,-600.25653696,0.00029863,7]
[344899713,1733857833582,-500.0,0.00029863,7]
[344899714,1733857833591,-500.0,0.00029863,7]
[344899715,1733857833600,-500.0,0.00029863,7]
[344899716,1733857833610,-639.89,0.00029863,7]
[344899717,1733857833620,-521.88711438,0.00029863,7]
[344899718,1733857833630,-500.0,0.00029863,7]
[344899719,1733857833642,-515.52008227,0.00029863,7]
[344899720,1733857833652,-500.0,0.00029863,7]
[344899721,1733857833662,-500.0,0.00029863,7]
[344899722,1733857833672,-500.0,0.00029863,7]
[344899723,1733857833681,-500.0,0.00029863,7]
[344899724,1733857833692,-500.0,0.00029863,7]
[344899725,1733857833702,-500.0,0.00029863,7]
[344899726,1733857833712,-497.21009805,0.00029863,7]
[344899727,1733857833722,-500.0,0.00029863,7]
[344899728,1733857833732,-500.0,0.00029863,7]
[344899729,1733857833745,-500.0,0.00029863,7]
[344899730,1733857833755,-500.0,0.00029863,7]
[344899731,1733857833765,-633.1058356,0.00029863,7]